lending/lending_fUSD_20241025
["ID","MTS","AMOUNT","RATE_DAILY","PERIOD"]
[340803100,1729855839981,-427.52140716,0.00052054,120]
[340803101,1729855839989,-500.0,0.00052054,120]
[340803102,1729855839997,-500.0,0.00052054,120]
[340803103,1729855840006,-172.99756927,0.00052054,120]
[340803104,1729855840015,-500.0,0.00052054,120]
[340803105,1729855840025,-500.0,0.00052054,120]
[340803106,1729855840033,-318.86133421,0.00052054,120]
[340803107,1729855840043,-500.0,0.00052054,120]
[340803108,1729855840053,-500.0,0.00052054,120]
[340803109,1729855840070,-513.47393682,0.00052054,120]
[340803110,1729855840081,-540.62324084,0.00052054,120]
[340803111,1729855840091,-500.0,0.00052054,120]
[340803112,1729855840102,-500.0,0.00052054,120]
[340803113,1729855840113,-3218.84,0.00052054,120]
[340803115,1729855840124,-500.0,0.00052054,120]
[340803117,1729855840135,-151.32328344,0.00052073,10]
[340803119,1729855840146,-500.0,0.00052073,2]
[340803120,1729855840158,-227.98508768,0.0005209,24]
[340803121,1729855840169,-333.49463112,0.0005209,2]
[340803122,1729855840179,-500.0,0.00052099,120]
[340803123,1729855840191,-1768.28,0.00052099,120]
[340803124,1729855840201,-577.26592224,0.00052099,120]
[340803125,1729855840212,-500.0,0.00052099,120]
[340803126,1729855840222,-500.0,0.00052099,120]
[340803127,1729855840234,-500.0,0.00052099,2]
[340803128,1729855840244,-484.65802999,0.00052099,120]
[340803129,1729855840254,-500.0,0.00052099,120]
[340803130,1729855840265,-454.2025352,0.00052099,120]
[340803131,1729855840276,-500.0,0.00052099,120]
[340803132,1729855840287,-181.17,0.00052099,120]
[340803133,1729855840297,-500.0,0.00052099,120]
[340803134,1729855840308,-52175.8511,0.000521,2]
[340803135,1729855840321,-12500.0,0.000521,120]
[340803137,1729855840331,-12500.0,0.000521,120]
[340803139,1729855840341,-154.62,0.0005218,120]
[340803142,1729855840351,-18328.4686262,0.00052189,11]
[340803144,1729855840361,-500.0,0.00052189,120]
[340803146,1729855840372,-499.999999,0.00052189,120]
[340803148,1729855840382,-500.0,0.00052189,120]
[340803149,1729855840392,-500.0,0.00052189,120]
[340803150,1729855840402,-500.0,0.00052189,120]
[340803151,1729855840413,-500.0,0.00052189,120]
[340803152,1729855840424,-500.0,0.00052189,120]
[340803153,1729855840435,-808.59,0.00052189,120]
[340803154,1729855840445,-6073.47,0.00052189,120]
[340803155,1729855840456,-439.22153768,0.00052189,120]
[340803156,1729855840466,-2570.25,0.00052189,120]
[340803157,1729855840476,-550.25797247,0.00052189,120]
[340803158,1729855840487,-543.45179347,0.00052189,120]
[340803159,1729855840497,-500.0,0.00052189,120]
[340803160,1729855840511,-524.98328878,0.00052189,120]
[340803161,1729855840522,-500.0,0.00052189,120]
[340803162,1729855840533,-500.0,0.00052189,120]
[340803163,1729855840543,-570.89769842,0.00052189,120]
[340803164,1729855840554,-513.33761246,0.00052189,120]
[340803165,1729855840566,-500.0,0.00052189,120]
[340803166,1729855840577,-582.01307614,0.00052189,120]
[340803167,1729855840587,-920.94,0.00052189,120]
[340803168,1729855840598,-500.0,0.00052189,120]
[340803169,1729855840609,-894.7,0.00052189,120]
[340803170,1729855840619,-937.22,0.00052189,120]
[340803171,1729855840630,-551.46140524,0.00052189,120]
[340803172,1729855840639,-2291.6,0.00052189,120]
[340803173,1729855840649,-500.0,0.00052189,120]
[340803174,1729855840659,-500.0,0.00052189,7]
[340803176,1729855840825,-500.0,0.00052189,120]
[340803177,1729855840835,-548.5384813,0.00052189,120]
[340803178,1729855840844,-500.0,0.00052189,120]
[340803179,1729855840852,-500.0,0.00052189,120]
[340803181,1729855840859,-517.62348057,0.00052189,120]
[340803183,1729855840867,-385.79012964,0.00052189,120]
[340803184,1729855840875,-565.8869387,0.00052189,120]
[340803186,1729855840884,-500.0,0.00052189,120]
[340803188,1729855840890,-500.0,0.00052189,120]
[340803190,1729855840897,-500.0,0.00052189,120]
[340803192,1729855840905,-157.86253803,0.00052189,120]
[340803193,1729855840912,-500.0,0.00052189,120]
[340803195,1729855840919,-500.0,0.00052189,120]
[340803197,1729855840927,-500.0,0.00052189,120]
[340803198,1729855840934,-555.05899326,0.00052189,120]
[340803200,1729855840942,-425.89527197,0.00052189,120]
[340803202,1729855840950,-4461.45664962,0.00052189,120]
[340803216,1729855841076,-1000.0,0.00052054,120]
[340803218,1729855841086,-21984.62335038,0.00052189,120]
[340803220,1729855841095,-500.0,0.00052189,120]
[340803222,1729855841105,-8486.94422737,0.0005219,11]
[340803224,1729855841117,-964.35546878,0.0005219,11]
[340803226,1729855841128,-281.186742,0.0005219,11]
[340803231,1729855841172,-410.37258028,0.0005219,11]
[340803233,1729855841183,-5511.00549854,0.0005219,11]
[340803236,1729855841196,-1789.28712758,0.0005219,11]
[340803238,1729855841208,-253.96999999,0.0005219,11]
[340803240,1729855841224,-3857.12769878,0.0005219,11]
[340803243,1729855841236,-21212.17745118,0.0005219,11]
[340803244,1729855841245,-12667.7968257,0.0005219,11]
[340803247,1729855841255,-6679.26249325,0.0005219,70]
[340803249,1729855841265,-78504.9430442,0.0005219,62]
[340803250,1729855841274,-151.0,0.0005219,120]
[340803252,1729855841284,-151.0,0.0005219,120]
[340803254,1729855841294,-151.0,0.0005219,120]
[340803256,1729855841304,-71208.65201965,0.0005219,11]
[340803422,1729855843336,-499.0567377,0.0005219,11]
[340803423,1729855843348,-1335.66409063,0.0005219,11]
[340803424,1729855843549,-18003.71471374,0.0005219,11]
[340803425,1729855843561,-640.224,0.0005219,11]
[340803426,1729855843579,-4143.95150533,0.0005219,11]
[340803427,1729855843591,-8030.05914795,0.0005219,11]
[340803428,1729855843601,-747.49545545,0.0005219,11]
[340803429,1729855843612,-707.3898016,0.0005219,11]
[340803430,1729855843625,-5626.523833,0.0005219,11]
[340803431,1729855843636,-394.58101345,0.0005219,11]
[340803432,1729855843662,-376.67997079,0.0005219,11]
[340803433,1729855843674,-447.3484677,0.0005219,11]
[340803434,1729855843686,-3079.99995,0.0005219,11]
[340803438,1729855846216,-1085.0,0.00049008,2]
[340803440,1729855846227,-559.88498717,0.00052054,120]
[340803442,1729855846239,-613.79,0.00052099,120]
[340803444,1729855846250,-383.17501283,0.00052189,120]
[340803452,1729855846392,-1108.82224678,0.00052189,120]
[340803453,1729855846402,-89962.35611401,0.0005219,11]
[340803454,1729855846412,-649.408248,0.0005219,120]
[340803455,1729855846422,-649.408248,0.0005219,120]
[340803456,1729855846431,-649.408248,0.0005219,120]
[340803457,1729855846440,-649.408248,0.0005219,120]
[340803458,1729855846450,-151.0,0.0005219,120]
[340803459,1729855846459,-151.0,0.0005219,120]
[340803460,1729855846469,-151.0,0.0005219,120]
[340803461,1729855846478,-360.901571,0.0005219,120]
[340803462,1729855846487,-360.901571,0.0005219,120]
[340803463,1729855846497,-360.901571,0.0005219,120]
[340803464,1729855846507,-360.901571,0.0005219,120]
[340803465,1729855846517,-360.901571,0.0005219,120]
[340803466,1729855846527,-500.0,0.00052199,120]
[340803467,1729855846536,-525.22,0.00052199,120]
[340803468,1729855846545,-500.0,0.00052199,120]
[340803469,1729855846555,-500.0,0.00052199,120]
[340803470,1729855846567,-500.0,0.00052199,120]
[340803471,1729855846577,-500.0,0.00052199,120]
[340803472,1729855846586,-500.0,0.00052199,120]
[340803473,1729855846597,-500.0,0.00052199,120]
[340803474,1729855846607,-500.0,0.00052199,120]
[340803475,1729855846617,-500.0,0.00052199,120]
[340803476,1729855846627,-500.0,0.00052199,120]
[340803477,1729855846637,-500.0,0.00052199,120]
[340803478,1729855846647,-502.79107833,0.00052199,120]
[340803479,1729855846656,-200.0,0.00052199,7]
[340803480,1729855846666,-525.58603614,0.00052199,120]
[340803481,1729855846676,-500.0,0.00052199,120]
[340803482,1729855846686,-543.77797213,0.00052199,120]
[340803483,1729855846696,-805.67,0.00052199,120]
[340803484,1729855846705,-500.0,0.00052199,120]
[340803485,1729855846715,-537.30316845,0.00052199,120]
[340803486,1729855846724,-500.0,0.00052199,120]
[340803487,1729855846734,-500.0,0.00052199,120]
[340803488,1729855846743,-514.88,0.00052199,120]
[340803489,1729855846753,-500.0,0.00052199,120]
[340803490,1729855846762,-573.97,0.00052199,120]
[340803491,1729855846771,-504.11198351,0.00052199,120]
[340803492,1729855846781,-506.74203349,0.00052199,120]
[340803493,1729855846790,-500.0,0.00052199,120]
[340803494,1729855846799,-1325.23,0.00052199,120]
[340803495,1729855846808,-500.0,0.00052199,120]
[340803496,1729855846818,-423.33000201,0.00052199,120]
[340803497,1729855846828,-500.0,0.00052199,120]
[340803498,1729855846837,-371.47692837,0.00052199,120]
[340803499,1729855846847,-500.0,0.00052199,120]
[340803500,1729855846856,-502.69575525,0.00052199,120]
[340803501,1729855846865,-561.30180381,0.00052199,120]
[340803502,1729855846875,-505.78488933,0.00052199,120]
[340803503,1729855846885,-501.85226642,0.00052199,120]
[340803504,1729855846894,-500.0,0.00052199,120]
[340803505,1729855846904,-504.24160862,0.00052199,120]
[340803506,1729855846914,-510.01758228,0.00052199,120]
[340803507,1729855846925,-500.0,0.00052199,120]
[340803508,1729855846936,-17.47858509,0.00052199,120]
[340803509,1729855846950,-482.52141491,0.00052199,120]
[340803510,1729855846959,-500.0,0.00052199,120]
[340803511,1729855846968,-500.0,0.00052199,120]
[340803512,1729855846978,-151.0,0.00052199,120]
[340803513,1729855846987,-500.0,0.00052199,120]
[340803514,1729855846997,-192.49218091,0.00052199,120]
[340803515,1729855847021,-360.901571,0.0005219,120]
[340803516,1729855847155,-307.50781909,0.00052199,120]
[340803517,1729855847165,-632.55967898,0.00052199,120]
[340803518,1729855847176,-500.0,0.00052199,120]
[340803519,1729855847187,-500.0,0.00052199,120]
[340803520,1729855847197,-411.95954132,0.00052199,120]
[340803521,1729855847207,-444.1267207,0.00052199,120]
[340803522,1729855847219,-500.0,0.00052199,120]
[340803523,1729855847231,-531.41349098,0.00052199,120]
[340803524,1729855847242,-540.04228863,0.00052199,120]
[340803525,1729855847251,-506.97986953,0.00052199,120]
[340803526,1729855847262,-576.69196374,0.00052199,120]
[340803527,1729855847274,-510.64846732,0.00052199,120]
[340803528,1729855847283,-524.40810946,0.00052199,120]
[340803529,1729855847292,-548.1338779,0.00052199,120]
[340803530,1729855847302,-525.44268845,0.00052199,120]
[340803531,1729855847312,-500.0,0.00052199,120]
[340803532,1729855847322,-500.0,0.00052199,120]
[340803533,1729855847332,-500.0,0.00052199,120]
[340803534,1729855847342,-500.0,0.00052199,120]
[340803535,1729855847352,-536.15223749,0.00052199,120]
[340803536,1729855847361,-596.9200938,0.00052199,60]
[340803537,1729855847371,-828.58,0.00052199,120]
[340803538,1729855847380,-266.72482534,0.00052199,120]
[340803539,1729855847390,-245.93694787,0.00052199,120]
[340803540,1729855847399,-839.54,0.00052199,7]
[340803541,1729855847408,-434.89139365,0.00052199,120]
[340803542,1729855847418,-538.97598774,0.00052199,120]
[340803543,1729855847427,-543.24831443,0.00052199,120]
[340803544,1729855847437,-545.74011966,0.00052199,120]
[340803545,1729855847446,-500.0,0.00052199,120]
[340803546,1729855847455,-536.29397376,0.00052199,120]
[340803547,1729855847464,-500.0,0.00052199,5]
[340803548,1729855847474,-533.88723052,0.00052199,120]
[340803549,1729855847483,-603.64770457,0.00052199,120]
[340803550,1729855847492,-497.46575235,0.00052199,120]
[340803551,1729855847502,-500.0,0.00052199,120]
[340803552,1729855847511,-573.08,0.00052199,120]
[340803553,1729855847520,-500.0,0.00052199,120]
[340803554,1729855847529,-625.28027637,0.00052199,120]
[340803555,1729855847538,-537.77562874,0.00052199,120]
[340803556,1729855847547,-629.77964931,0.00052199,120]
[340803557,1729855847556,-500.0,0.00052199,120]
[340803558,1729855847567,-500.0,0.00052199,120]
[340803559,1729855847577,-500.0,0.00052199,120]
[340803560,1729855847587,-500.0,0.00052199,120]
[340803561,1729855847597,-500.0,0.00052199,120]
[340803562,1729855847608,-649.408248,0.00052199,120]
[340803563,1729855847617,-1516.71,0.00052199,120]
[340803564,1729855847627,-649.408248,0.00052199,120]
[340803565,1729855847637,-500.0,0.00052199,120]
[340803566,1729855847648,-500.0,0.00052199,120]
[340803567,1729855847657,-508.09531073,0.00052199,120]
[340803568,1729855847667,-505.67740929,0.00052199,120]
[340803569,1729855847677,-619.64,0.00052199,120]
[340803570,1729855847687,-512.15589394,0.00052199,120]
[340803571,1729855847698,-500.0,0.00052199,120]
[340803572,1729855847708,-503.42339525,0.00052199,120]
[340803573,1729855847719,-500.0,0.00052199,120]
[340803574,1729855847728,-500.0,0.00052199,120]
[340803575,1729855847739,-520.87103698,0.00052199,120]
[340803576,1729855847748,-337.26407195,0.00052199,120]
[340803577,1729855847758,-503.15574307,0.00052199,120]
[340803578,1729855847769,-395.32459142,0.00052199,120]
[340803579,1729855847780,-315.15497997,0.00052199,120]
[340803580,1729855847790,-151.0,0.00052199,120]
[340803581,1729855847800,-500.0,0.00052199,120]
[340803582,1729855847810,-360.901571,0.00052199,120]
[340803583,1729855847825,-500.0,0.00052199,120]
[340803584,1729855847835,-450.0,0.000522,2]
[340803585,1729855847845,-6080.82925011,0.000522,120]
[340803586,1729855847857,-272.6205803,0.000522,120]
[340803587,1729856335457,168.01,0.00015342,2]
[340803588,1729856869918,159.7,0.00015342,2]
[340803606,1729857037480,-300.0,0.00019725,2]
[340803607,1729857037491,-348.72976798,0.00030448,2]
[340803608,1729857037503,-159.7,0.00030548,2]
[340803609,1729857037512,-227.88323328,0.00042707,30]
[340803610,1729857037522,-159.7,0.00045753,2]
[340803611,1729857037532,-595.95,0.00048887,2]
[340803612,1729857037542,-188.12016555,0.00049001,2]
[340803613,1729857037552,-152.0,0.000491,3]
[340803614,1729857037561,-31746.53334764,0.0005,2]
[340803615,1729857037820,-302.5407008,0.0005,2]
[340803616,1729857037832,-870.40789935,0.0005,2]
[340803617,1729857037882,-10303.51805221,0.0005,2]
[340803618,1729857037892,-5142.0,0.0005,120]
[340803619,1729857037901,-44498.90565255,0.0005,120]
[340803634,1729857039490,-1950.0,0.0005,120]
[340803635,1729857039531,-14351.31790298,0.0005,120]
[340803636,1729857039543,-1922.42255462,0.0005,120]
[340803637,1729857039624,-20033.00775379,0.0005,120]
[340803638,1729857039637,-427.24389,0.0005,120]
[340803639,1729857039649,-325.57201946,0.0005,120]
[340803640,1729857039661,-466.867531,0.0005,120]
[340803641,1729857039689,-5793.0,0.0005,120]
[340803642,1729857039702,-1575.42866295,0.0005,120]
[340803643,1729857039762,-7263.84919311,0.0005,120]
[340803644,1729857039775,-1361.257504,0.0005,120]
[340803645,1729857039787,-4497.67827439,0.0005,120]
[340803646,1729857039800,-1950.58610927,0.0005,120]
[340803647,1729857039812,-1474.97066654,0.0005,120]
[340803648,1729857039824,-419.1899935,0.0005,120]
[340803649,1729857039836,-1220.0000005,0.0005,120]
[340803650,1729857039847,-574.03358918,0.0005,120]
[340803651,1729857039859,-1203.80046526,0.0005,120]
[340803652,1729857039894,-14559.57437528,0.0005,120]
[340803665,1729857042487,-20533.8,0.0005,120]
[340803666,1729857042499,-1044.08377648,0.0005,120]
[340803667,1729857042519,-423.95581672,0.0005,120]
[340803668,1729857042532,-507.53028692,0.0005,120]
[340803669,1729857042544,-503.19150413,0.0005,120]
[340803670,1729857042573,-209028.8283119,0.0005,120]
[340803671,1729857042585,-515.811067,0.0005,120]
[340803672,1729857042598,-475.33246739,0.0005,120]
[340803673,1729857042611,-565.99524606,0.0005,120]
[340803674,1729857042624,-1257.99548884,0.0005,120]
[340803675,1729857042636,-2993.70343954,0.0005,120]
[340803676,1729857042714,-357.69482547,0.0005,120]
[340803677,1729857042727,-3580.30432279,0.0005,120]
[340803678,1729857042783,-15821.07489829,0.0005,120]
[340803679,1729857042832,-116521.99241009,0.0005,120]
[340803680,1729857042843,-160.0,0.0005028,120]
[340803681,1729857042852,-150.19,0.0005046,120]
[340803682,1729857042862,-276.72,0.00050605,2]
[340803683,1729857042872,-250.0,0.00050652,120]
[340803684,1729857042882,-250.0,0.00050697,120]
[340803685,1729857042892,-184.7,0.00050746,2]
[340803686,1729857042902,-840.0,0.00050806,120]
[340803687,1729857042912,-250.0,0.00050842,120]
[340803688,1729857042923,-177.04,0.00050842,120]
[340803689,1729857042932,-182.81,0.00051147,120]
[340803690,1729857042943,-595.95,0.00051151,2]
[340803691,1729857042953,-10492.0,0.000515,120]
[340803692,1729857042964,-1000.0,0.000516,7]
[340803693,1729857042974,-8404.83247522,0.000518,120]
[340803694,1729857042984,-528.33716051,0.000519,120]
[340803695,1729857042994,-287.322,0.000519,94]
[340803696,1729857043007,-26641.2431,0.00051954,2]
[340803697,1729857043020,-1797.81495984,0.00051954,15]
[340803698,1729857043030,-161.41471332,0.0005199,28]
[340803699,1729857043045,-212.78608176,0.00051999,24]
[340803700,1729857043055,-311.26165574,0.00051999,2]
[340803701,1729857043065,-12500.0,0.00052,120]
[340803702,1729857043075,-1030.0,0.00052,120]
[340803703,1729857043084,-68160.90067905,0.00052,120]
[340803704,1729857043094,-671.71196608,0.00052,120]
[340803705,1729857043106,-504.74990525,0.00052054,120]
[340803706,1729857043116,-500.0,0.00052054,120]
[340803707,1729857043125,-500.0,0.00052054,120]
[340803708,1729857043135,-588.22,0.00052054,120]
[340803709,1729857043145,-500.0,0.00052054,120]
[340803710,1729857043155,-503.33,0.00052054,120]
[340803711,1729857043166,-410.42309567,0.00052054,120]
[340803712,1729857043176,-500.0,0.00052054,120]
[340803713,1729857043186,-500.0,0.00052054,120]
[340803714,1729857043197,-500.0,0.00052054,120]
[340803715,1729857043207,-500.0,0.00052054,120]
[340803716,1729857043218,-644.87565058,0.00052054,120]
[340803717,1729857043229,-500.0,0.00052054,120]
[340803718,1729857043239,-2000.0,0.00052054,120]
[340803719,1729857043250,-2000.0,0.00052054,120]
[340803720,1729857043263,-2000.0,0.00052054,120]
[340803721,1729857043273,-2000.0,0.00052054,120]
[340803722,1729857043284,-321.50696708,0.00052054,120]
[340803723,1729857045553,-271.647859,0.00052054,120]
[340803724,1729857340905,298.0,0.000183,2]
[340803725,1729857341730,268.0,0.000183,2]
[340803726,1729857378756,159.99,0.00015342,2]
[340803727,1729857490923,-196.73,0.00019178,2]
[340803728,1729857541352,300.0,0.00019725,2]
[340803729,1729857602800,500.0,0.0001726,2]
[340803730,1729857603168,500.0,0.0001726,2]
[340803731,1729857603564,500.0,0.0001726,2]
[340803732,1729858003179,-159.99,0.0003272,2]
[340803733,1729858003221,-75.54940092,0.00042612,2]
[340803734,1729858038585,156.57,0.00015342,2]
[340803735,1729858146153,250.0,0.0001,2]
[340803736,1729858147249,300.0,0.00012,2]
[340803737,1729858148352,350.0,0.00014,2]
[340803738,1729858149453,400.0,0.00016,2]
[340803739,1729858150557,450.0,0.00018,2]
[340803746,1729858231525,-156.57,0.00025479,2]
[340803747,1729858231536,-156.57,0.00035616,2]
[340803748,1729858231548,-500.0,0.0004,30]
[340803749,1729858231563,-500.0,0.0004,30]
[340803750,1729858231573,-500.0,0.0004,30]
[340803751,1729858231585,-451.61199555,0.0004,30]
[340803752,1729858231598,-48.38800445,0.0004,30]
[340803753,1729858231609,-632.81622055,0.00042712,120]
[340803754,1729858231624,-313.45570478,0.00042712,120]
[340803755,1729858231636,-307.95114831,0.00042712,120]
[340803756,1729858231649,-260.36775229,0.00042712,120]
[340803757,1729858231662,-360.50156887,0.00042712,120]
[340803758,1729858231674,-397.42457406,0.00042712,120]
[340803759,1729858231702,-903.25395577,0.00042712,120]
[340804047,1729858237555,-1270.22907537,0.00042712,120]
[340804049,1729858237570,-156.57,0.00045753,2]
[340804050,1729858237580,-150.99,0.00048192,2]
[340804051,1729858237591,-617.89,0.00048292,2]
[340804052,1729858237601,-226.0,0.00048294,4]
[340804053,1729858237611,-338.94,0.00048295,2]
[340804054,1729858237621,-33215.26910884,0.00048295,10]
[340804055,1729858237634,-2716.66522628,0.00048295,10]
[340804056,1729858237647,-279.4315376,0.00048295,10]
[340804057,1729858237663,-3936.61582778,0.00048295,10]
[340804058,1729858237768,-2942.2382995,0.00048295,10]
[340804059,1729858237779,-448.0,0.00049028,2]
[340804060,1729858237788,-1245.0,0.00049028,2]
[340804061,1729858237798,-500.0,0.0004915,10]
[340804062,1729858237807,-500.0,0.0004915,2]
[340804063,1729858237817,-2218.0,0.0004937,2]
[340804064,1729858237827,-250.0,0.00049859,120]
[340804065,1729858237836,-184.7,0.0004991,2]
[340804066,1729858237846,-250.0,0.00049913,120]
[340804067,1729858237856,-1000.0,0.00049939,120]
[340804068,1729858237865,-1060.28,0.00049969,2]
[340804069,1729858237875,-150.19,0.00049988,120]
[340804070,1729858237884,-1340.0,0.0005,10]
[340804071,1729858237894,-295.79156249,0.0005,60]
[340804072,1729858237906,-34465.28266374,0.0005,60]
[340804073,1729858237916,-159.99,0.00050098,2]
[340804074,1729858237926,-150.0,0.00050147,2]
[340804075,1729858237936,-177.04,0.00050182,120]
[340804076,1729858237947,-150.0,0.00050221,2]
[340804077,1729858237958,-184.42,0.00050233,2]
[340804078,1729858237969,-317.61,0.00050258,2]
[340804079,1729858237978,-200.0,0.0005027,2]
[340804081,1729858237988,-757.42,0.00050274,60]
[340804083,1729858237998,-200.0,0.00050384,2]
[340804085,1729858238007,-250.0,0.00050404,120]
[340804087,1729858238017,-289.22054764,0.0005052,10]
[340804089,1729858238027,-1000.0,0.0005052,2]
[340804091,1729858238037,-617.89,0.00050556,2]
[340804093,1729858238047,-299.829,0.0005083,120]
[340804094,1729858238058,-163.08,0.00050865,2]
[340804095,1729858238068,-1720.62,0.00050901,2]
[340804096,1729858238078,-160.41,0.00050994,2]
[340804097,1729858238088,-1000.0,0.00051,60]
[340804098,1729858238102,-757.42,0.00051041,60]
[340804099,1729858238112,-182.81,0.00051138,120]
[340804100,1729858238121,-757.42,0.00051141,60]
[340804101,1729858238131,-757.42,0.00051141,60]
[340804102,1729858238141,-1054.38,0.00051149,120]
[340804103,1729858238152,-1054.38,0.00051149,120]
[340804104,1729858238161,-1054.38,0.00051149,120]
[340804105,1729858238171,-1054.38,0.00051149,120]
[340804106,1729858238180,-424.84,0.00051149,120]
[340804107,1729858238190,-1054.38,0.00051149,120]
[340804108,1729858238199,-229.858,0.00051149,92]
[340804109,1729858238209,-757.42,0.00051233,60]
[340804111,1729858238222,-150.0,0.00051505,120]
[340804113,1729858238232,-150.0,0.00051595,7]
[340804115,1729858238243,-251.55504455,0.00051794,3]
[340804117,1729858238253,-150.0,0.00051826,7]
[340804118,1729858238264,-292.9882,0.00051954,2]
[340804120,1729858238274,-6671.3772,0.00051954,2]
[340804122,1729858238285,-921.9431,0.00051954,2]
[340804124,1729858238295,-1618.03346382,0.00051954,15]
[340804126,1729858238306,-167.0,0.00051989,2]
[340804128,1729858238316,-4859.0043,0.00051999,2]
[340804129,1729858238326,-1697.40268688,0.00052,120]
[340804130,1729858238339,-398.7127743,0.00052,120]
[340804131,1729858238351,-708.48229604,0.00052,120]
[340804132,1729858238362,-1149.94567796,0.00052,120]
[340804133,1729858238374,-789.15183684,0.00052,120]
[340804134,1729858238390,-848.43751382,0.00052,120]
[340804158,1729858239935,-311.26165571,0.0005199,2]
[340804159,1729858239945,-392.99978399,0.00052,120]
[340804160,1729858239958,-892.33852066,0.00052,120]
[340804290,1729858242525,-8427.12666673,0.00052,120]
[340804291,1729858242535,-12500.0,0.00052,120]
[340804292,1729858242546,-206.34455503,0.00052,11]
[340804293,1729858242556,-500.0,0.00052,12]
[340804294,1729858242566,-5242.64548371,0.00052,7]
[340804296,1729858242578,-500.0,0.00052028,2]
[340804297,1729858242588,-500.0,0.00052028,2]
[340804298,1729858242598,-500.0,0.00052028,2]
[340804299,1729858242607,-500.0,0.00052028,2]
[340804300,1729858242617,-500.0,0.00052028,2]
[340804301,1729858242638,-408.8981,0.00052028,2]
[340804302,1729858242649,-1000.0,0.00052028,2]
[340804303,1729858242659,-1000.0,0.00052028,2]
[340804304,1729858242670,-1000.0,0.00052028,2]
[340804305,1729858242680,-541.842,0.00052028,2]
[340804306,1729858242695,-15145.7563697,0.00052044,11]
[340804307,1729858242705,-500.0,0.00052054,120]
[340804308,1729858242716,-500.0,0.00052054,120]
[340804309,1729858242726,-152.03208683,0.00052054,120]
[340804311,1729858242913,-804.56,0.00052054,7]
[340804313,1729858242923,-500.0,0.00052054,120]
[340804314,1729858242933,-500.0,0.00052054,5]
[340804315,1729858242943,-504.58569853,0.00052054,120]
[340804316,1729858242952,-549.2,0.00052054,120]
[340804317,1729858242963,-500.0,0.00052054,120]
[340804319,1729858242974,-500.0,0.00052054,120]
[340804321,1729858242984,-500.0,0.00052054,120]
[340804322,1729858242993,-466.96817408,0.00052054,120]
[340804323,1729858243004,-500.0,0.00052054,120]
[340804324,1729858243015,-1453.51,0.00052054,120]
[340804325,1729858243030,-500.0,0.00052054,120]
[340804326,1729858243040,-345.72854924,0.00052054,120]
[340804327,1729858243050,-601.25098556,0.00052054,120]
[340804328,1729858243060,-500.0,0.00052054,120]
[340804329,1729858243069,-500.0,0.00052054,120]
[340804331,1729858243080,-500.0,0.00052054,120]
[340804333,1729858243089,-529.37747905,0.00052054,120]
[340804334,1729858243100,-500.0,0.00052054,120]
[340804336,1729858243110,-500.0,0.00052054,120]
[340804338,1729858243121,-500.0,0.00052054,120]
[340804339,1729858243132,-391.53549563,0.00052054,120]
[340804340,1729858243143,-1053.95,0.00052054,120]
[340804341,1729858243154,-500.0,0.00052054,120]
[340804342,1729858243164,-500.0,0.00052054,120]
[340804343,1729858243174,-500.0,0.00052054,120]
[340804344,1729858243187,-529.90451612,0.00052054,120]
[340804345,1729858243197,-500.0,0.00052054,120]
[340804346,1729858243209,-500.0,0.00052054,120]
[340804347,1729858243223,-563.71,0.00052054,120]